fUSD/lending_fUSD_20250214
["ID","MTS","AMOUNT","RATE_DAILY","PERIOD"]
[353054489,1739530244280,-500.0,0.00013698,2]
[353054491,1739530244290,-501.77556609,0.00013698,2]
[353054493,1739530244299,-500.0,0.00013698,2]
[353054495,1739530244309,-500.0,0.00013698,2]
[353054496,1739530244318,-503.72147044,0.00013698,2]
[353054498,1739530244327,-500.0,0.00013698,2]
[353054500,1739530244337,-500.0,0.00013698,2]
[353054502,1739530244346,-502.67846226,0.00013698,2]
[353054504,1739530244356,-500.0,0.00013698,2]
[353054506,1739530244365,-501.13708996,0.00013698,2]
[353054508,1739530244374,-502.44304911,0.00013698,2]
[353054510,1739530244383,-1040.49,0.00013698,2]
[353054512,1739530244393,-500.0,0.00013698,2]
[353054514,1739530244402,-502.13582771,0.00013698,2]
[353054516,1739530244411,-500.0,0.00013698,2]
[353054518,1739530244420,-503.69376511,0.00013698,2]
[353054520,1739530244431,-505.58340983,0.00013698,2]
[353054522,1739530244440,-500.0,0.00013698,2]
[353054524,1739530244449,-503.0604652,0.00013698,2]
[353054526,1739530244458,-500.0,0.00013698,2]
[353054528,1739530244468,-340.84518084,0.00013698,2]
[353054530,1739530244477,-500.0,0.00013698,2]
[353054532,1739530244487,-500.0,0.00013698,2]
[353054534,1739530244495,-500.0,0.00013698,2]
[353054536,1739530244504,-500.0,0.00013698,2]
[353054538,1739530244513,-500.0,0.00013698,2]
[353054540,1739530244523,-500.0,0.00013698,2]
[353054542,1739530244532,-500.388543,0.00013698,2]
[353054544,1739530244542,-500.0,0.00013698,2]
[353054546,1739530244551,-500.0,0.00013698,2]
[353054548,1739530244561,-504.89359182,0.00013698,2]
[353054550,1739530244573,-500.0,0.00013698,2]
[353054552,1739530244584,-500.0,0.00013698,2]
[353054554,1739530244595,-500.0,0.00013698,2]
[353054556,1739530244604,-500.0,0.00013698,2]
[353054558,1739530244613,-504.62931185,0.00013698,2]
[353054560,1739530244623,-500.0,0.00013698,2]
[353054562,1739530244632,-500.0,0.00013698,2]
[353054564,1739530244641,-500.0,0.00013698,2]
[353054566,1739530244650,-500.0,0.00013698,2]
[353054568,1739530244660,-500.0,0.00013698,2]
[353054570,1739530244669,-500.0,0.00013698,2]
[353054572,1739530244678,-503.97966346,0.00013698,2]
[353054574,1739530244688,-500.0,0.00013698,2]
[353054575,1739530244697,-500.0,0.00013698,2]
[353054577,1739530244707,-576.76,0.00013698,2]
[353054579,1739530244716,-500.0,0.00013698,2]
[353054581,1739530244725,-505.73310016,0.00013698,2]
[353054583,1739530244734,-500.0,0.00013698,2]
[353054585,1739530244744,-500.0,0.00013698,2]
[353054587,1739530244753,-500.0,0.00013698,2]
[353054589,1739530244762,-500.0,0.00013698,2]
[353054591,1739530244771,-500.0,0.00013698,2]
[353054593,1739530244780,-502.16996037,0.00013698,2]
[353054595,1739530244790,-500.0,0.00013698,2]
[353054597,1739530244800,-500.0,0.00013698,2]
[353054599,1739530244809,-500.0,0.00013698,2]
[353054601,1739530244819,-500.0,0.00013698,2]
[353054604,1739530244828,-504.99192568,0.00013698,2]
[353054606,1739530244837,-500.0,0.00013698,2]
[353054608,1739530244847,-500.0,0.00013698,2]
[353054610,1739530244856,-500.25639361,0.00013698,2]
[353054612,1739530244865,-500.0,0.00013698,2]
[353054614,1739530244874,-500.0,0.00013698,2]
[353054616,1739530244884,-500.0,0.00013698,2]
[353054618,1739530244897,-500.0,0.00013698,2]
[353054621,1739530244911,-500.0,0.00013698,2]
[353054623,1739530244925,-500.0,0.00013698,2]
[353054625,1739530244939,-500.0,0.00013698,2]
[353054628,1739530244950,-502.37430511,0.00013698,2]
[353054630,1739530244963,-500.0,0.00013698,2]
[353054632,1739530244976,-500.0,0.00013698,2]
[353054635,1739530244989,-500.0,0.00013698,2]
[353054637,1739530245003,-500.0,0.00013698,2]
[353054640,1739530245016,-503.44364061,0.00013698,2]
[353054642,1739530245029,-500.0,0.00013698,2]
[353054644,1739530245040,-500.0,0.00013698,2]
[353054647,1739530245051,-500.0,0.00013698,2]
[353054649,1739530245062,-500.0,0.00013698,2]
[353054651,1739530245075,-500.0,0.00013698,2]
[353054653,1739530245087,-520.53479289,0.00013698,2]
[353054656,1739530245099,-500.0,0.00013698,2]
[353054658,1739530245111,-500.0,0.00013698,2]
[353054660,1739530245124,-500.0,0.00013698,2]
[353054663,1739530245139,-500.0,0.00013698,2]
[353054665,1739530245155,-500.0,0.00013698,2]
[353054668,1739530245169,-501.53427438,0.00013698,2]
[353054670,1739530245183,-500.0,0.00013698,2]
[353054672,1739530245197,-542.74,0.00013698,2]
[353054675,1739530245212,-500.0,0.00013698,2]
[353054677,1739530245226,-1000.0,0.00013698,2]
[353054679,1739530245237,-501.08807929,0.00013698,2]
[353054681,1739530245251,-500.0,0.00013698,2]
[353054683,1739530245265,-500.0,0.00013698,2]
[353054686,1739530245280,-510.43012567,0.00013698,2]
[353054688,1739530245294,-501.04532177,0.00013698,2]
[353054690,1739530245309,-500.0,0.00013698,2]
[353054693,1739530245322,-500.0,0.00013698,2]
[353054695,1739530245333,-500.0,0.00013698,2]
[353054696,1739530245344,-500.0,0.00013698,2]
[353054699,1739530245358,-500.0,0.00013698,2]
[353054701,1739530245373,-500.0,0.00013698,2]
[353054704,1739530245385,-500.0,0.00013698,2]
[353054706,1739530245395,-500.0,0.00013698,2]
[353054708,1739530245405,-500.0,0.00013698,2]
[353054710,1739530245417,-520.47572492,0.00013698,2]
[353054713,1739530245430,-601.75870708,0.00013698,2]
[353054715,1739530245444,-548.14514686,0.00013698,2]
[353054717,1739530245455,-500.0,0.00013698,2]
[353054719,1739530245465,-500.86716048,0.00013698,2]
[353054721,1739530245476,-500.0,0.00013698,2]
[353054724,1739530245488,-501.51347041,0.00013698,2]
[353054726,1739530245499,-500.0,0.00013698,2]
[353054728,1739530245510,-500.0,0.00013698,2]
[353054730,1739530245521,-500.0,0.00013698,2]
[353054732,1739530245533,-500.0,0.00013698,2]
[353054735,1739530245544,-500.0,0.00013698,2]
[353054737,1739530245557,-500.54275653,0.00013698,2]
[353054739,1739530245568,-500.0,0.00013698,2]
[353054741,1739530245579,-500.0,0.00013698,2]
[353054744,1739530245590,-500.0,0.00013698,2]
[353054746,1739530245601,-500.0,0.00013698,2]
[353054748,1739530245611,-500.0,0.00013698,2]
[353054750,1739530245623,-506.07783866,0.00013698,2]
[353054752,1739530245634,-707.22,0.00013698,2]
[353054755,1739530245645,-500.0,0.00013698,2]
[353054757,1739530245657,-507.1406912,0.00013698,2]
[353054759,1739530245668,-500.0,0.00013698,2]
[353054761,1739530245679,-500.0,0.00013698,2]
[353054764,1739530245690,-500.0,0.00013698,2]
[353054766,1739530245701,-508.12824934,0.00013698,2]
[353054768,1739530245712,-502.40659375,0.00013698,2]
[353054770,1739530245724,-154.64693613,0.00013698,2]
[353054772,1739530245735,-501.98615083,0.00013698,2]
[353054774,1739530245746,-500.0,0.00013698,2]
[353054777,1739530245758,-500.0,0.00013698,2]
[353054779,1739530245769,-505.35593445,0.00013698,2]
[353054781,1739530245781,-500.0,0.00013698,2]
[353054783,1739530245793,-500.0,0.00013698,2]
[353054785,1739530245804,-500.0,0.00013698,2]
[353054787,1739530245815,-500.0,0.00013698,2]
[353054789,1739530245827,-503.01815851,0.00013698,2]
[353054792,1739530245839,-500.0,0.00013698,2]
[353054794,1739530245851,-500.0,0.00013698,2]
[353054796,1739530245863,-500.0,0.00013698,2]
[353054798,1739530245875,-500.0,0.00013698,2]
[353054799,1739530245887,-500.0,0.00013698,2]
[353054800,1739530245899,-500.0,0.00013698,2]
[353054801,1739530245911,-500.0,0.00013698,2]
[353054802,1739530245922,-500.0,0.00013698,2]
[353054804,1739530245935,-500.0,0.00013698,2]
[353054806,1739530245947,-500.0,0.00013698,2]
[353054807,1739530245959,-500.0,0.00013698,2]
[353054810,1739530245971,-500.0,0.00013698,2]
[353054812,1739530245982,-500.0,0.00013698,2]
[353054815,1739530245994,-500.0,0.00013698,2]
[353054817,1739530246005,-504.55653424,0.00013698,2]
[353054819,1739530246017,-500.0,0.00013698,2]
[353054822,1739530246030,-500.0,0.00013698,2]
[353054824,1739530246041,-500.0,0.00013698,2]
[353054826,1739530246053,-500.0,0.00013698,2]
[353054828,1739530246067,-500.0,0.00013698,2]
[353054830,1739530246079,-494.0,0.00013698,2]
[353054833,1739530246091,-501.492268,0.00013698,2]
[353054835,1739530246102,-500.0,0.00013698,2]
[353054837,1739530246114,-500.0,0.00013698,2]
[353054839,1739530246125,-504.36845584,0.00013698,2]
[353054841,1739530246141,-503.51039506,0.00013698,2]
[353054845,1739530246153,-500.0,0.00013698,2]
[353054847,1739530246166,-500.0,0.00013698,2]
[353054849,1739530246179,-500.0,0.00013698,2]
[353054852,1739530246195,-500.0,0.00013698,2]
[353054854,1739530246207,-500.0,0.00013698,2]
[353054856,1739530246220,-506.08797835,0.00013698,2]
[353054858,1739530246233,-500.0,0.00013698,2]
[353054860,1739530246245,-500.0,0.00013698,2]
[353054879,1739530246409,-500.0,0.00013698,2]
[353054882,1739530246426,-500.0,0.00013698,2]
[353054884,1739530246439,-500.0,0.00013698,2]
[353054886,1739530246449,-595.62584477,0.00013698,2]
[353054888,1739530246459,-500.0,0.00013698,2]
[353054890,1739530246469,-500.0,0.00013698,2]
[353054892,1739530246480,-500.0,0.00013698,2]
[353054894,1739530246492,-2186.15,0.00013698,2]
[353054896,1739530246502,-2186.15,0.00013698,2]
[353054898,1739530246512,-501.60122399,0.00013698,2]
[353054900,1739530246522,-2186.15,0.00013698,2]
[353054902,1739530246531,-500.0,0.00013698,2]
[353054904,1739530246541,-2186.15,0.00013698,2]
[353054906,1739530246551,-506.34444378,0.00013698,2]
[353054908,1739530246560,-494.29209207,0.00013698,2]
[353054910,1739530246570,-500.0,0.00013698,2]
[353054912,1739530246580,-500.0,0.00013698,2]
[353054914,1739530246590,-502.23962759,0.00013698,2]
[353054916,1739530246599,-500.0,0.00013698,2]
[353054918,1739530246609,-502.26539651,0.00013698,2]
[353054920,1739530246622,-500.0,0.00013698,2]
[353054922,1739530246637,-500.0,0.00013698,2]
[353054924,1739530246648,-500.0,0.00013698,2]
[353054926,1739530246658,-500.0,0.00013698,2]
[353054928,1739530246668,-500.0,0.00013698,2]
[353054930,1739530246677,-500.0,0.00013698,2]
[353054931,1739530246689,-500.0,0.00013698,2]
[353054933,1739530246699,-500.0,0.00013698,2]
[353054936,1739530246708,-500.0,0.00013698,2]
[353054938,1739530246716,-509.33113872,0.00013698,2]
[353054940,1739530246726,-500.0,0.00013698,2]
[353054942,1739530246736,-500.0,0.00013698,2]
[353054944,1739530246745,-500.0,0.00013698,2]
[353054946,1739530246755,-500.0,0.00013698,2]
[353054948,1739530246765,-500.0,0.00013698,2]
[353054950,1739530246774,-377.51462243,0.00013698,2]
[353054952,1739530246784,-505.30988394,0.00013698,2]
[353054954,1739530246793,-596.15,0.00013698,2]
[353054956,1739530246803,-500.0,0.00013698,2]
[353054958,1739530246812,-500.0,0.00013698,2]
[353054960,1739530246821,-500.0,0.00013698,2]
[353054962,1739530246832,-502.57302255,0.00013698,2]
[353054964,1739530246849,-447.9847992,0.00013698,2]
[353054966,1739530246863,-500.0,0.00013698,2]
[353054968,1739530246873,-500.0,0.00013698,2]
[353054970,1739530246883,-529.38818415,0.00013698,2]
[353054972,1739530246892,-500.0,0.00013698,2]
[353054974,1739530246902,-530.02,0.00013698,2]
[353054976,1739530246912,-500.0,0.00013698,2]
[353054978,1739530246922,-520.56391962,0.00013698,2]
[353054980,1739530246931,-500.0,0.00013698,2]
[353054982,1739530246941,-500.0,0.00013698,2]
[353054984,1739530246950,-500.0,0.00013698,2]
[353054986,1739530246959,-500.0,0.00013698,2]
[353054988,1739530246973,-500.0,0.00013698,2]
[353054990,1739530246983,-500.0,0.00013698,2]
[353054992,1739530246992,-500.0,0.00013698,2]
[353054994,1739530247002,-500.0,0.00013698,2]
[353054996,1739530247011,-500.0,0.00013698,2]
[353054998,1739530247021,-500.0,0.00013698,2]
[353055000,1739530247030,-500.0,0.00013698,2]
[353055002,1739530247039,-500.0,0.00013698,2]
[353055004,1739530247048,-500.0,0.00013698,2]
[353055006,1739530247058,-501.02575943,0.00013698,2]
[353055008,1739530247067,-500.0,0.00013698,2]
[353055010,1739530247077,-500.0,0.00013698,2]
[353055012,1739530247086,-502.96300585,0.00013698,2]
[353055014,1739530247095,-500.0,0.00013698,2]
[353055016,1739530247104,-500.0,0.00013698,2]
[353055018,1739530247114,-500.0,0.00013698,2]
[353055020,1739530247123,-500.70752509,0.00013698,2]
[353055022,1739530247133,-500.0,0.00013698,2]
[353055024,1739530247146,-500.0,0.00013698,2]
[353055026,1739530247155,-502.46634042,0.00013698,2]
[353055028,1739530247165,-500.0,0.00013698,2]
[353055030,1739530247175,-500.0,0.00013698,2]
[353055032,1739530247187,-500.0,0.00013698,2]
[353055034,1739530247197,-500.0,0.00013698,2]
[353055036,1739530247206,-500.0,0.00013698,2]
[353055038,1739530247216,-500.0,0.00013698,2]
[353055040,1739530247225,-500.0,0.00013698,2]
[353055042,1739530247235,-500.0,0.00013698,2]
[353055044,1739530247244,-500.0,0.00013698,2]
[353055046,1739530247254,-500.0,0.00013698,2]
[353055048,1739530247263,-500.0,0.00013698,2]
[353055050,1739530247273,-500.0,0.00013698,2]
[353055052,1739530247282,-500.0,0.00013698,2]
[353055054,1739530247292,-464.67196683,0.00013698,2]
[353055056,1739530247302,-500.0,0.00013698,2]
[353055058,1739530247311,-500.0,0.00013698,2]
[353055060,1739530247321,-500.0,0.00013699,2]
[353055062,1739530247331,-500.0,0.00013699,2]
[353055064,1739530247341,-500.0,0.00013699,2]
[353055066,1739530247350,-1905.22,0.00013699,2]
[353055068,1739530247360,-500.0,0.00013699,2]
[353055070,1739530247370,-192.34,0.00013699,2]
[353055072,1739530247381,-8924.74,0.00013699,2]
[353055074,1739530247391,-200.0,0.00013699,2]
[353055077,1739530247401,-500.0,0.000137,5]
[353055079,1739530247410,-1061.87625243,0.00013722,2]
[353055081,1739530247420,-203.33038599,0.0001377,2]
[353055083,1739530247430,-2186.15,0.00013779,2]
[353055085,1739530247441,-500.0,0.0001378,2]
[353055087,1739530247451,-274.88448693,0.0001378,2]
[353055089,1739530247460,-500.0,0.0001378,2]
[353055091,1739530247470,-510.783905,0.0001378,2]
[353055093,1739530247480,-500.0,0.0001378,2]
[353055095,1739530247489,-508.22575554,0.0001378,2]
[353055097,1739530247499,-562.07038355,0.0001378,2]
[353055099,1739530247508,-298.55,0.0001378,2]
[353055101,1739530247518,-166.68,0.0001378,2]
[353055103,1739530247528,-159.75,0.0001378,2]
[353055105,1739530247537,-198.24,0.0001378,2]
[353055107,1739530247547,-354.58,0.0001378,2]
[353055109,1739530247556,-377.13,0.0001378,2]
[353055110,1739530247566,-500.0,0.0001378,2]
[353055111,1739530247576,-557.70626813,0.0001378,2]
[353055112,1739530247585,-293.93657044,0.0001378,2]
[353055113,1739530247595,-212.67129417,0.0001378,2]
[353055114,1739530247604,-500.0,0.0001378,2]
[353055115,1739530247614,-500.0,0.0001378,2]
[353055116,1739530247623,-500.0,0.0001378,2]
[353055117,1739530247633,-500.0,0.0001378,2]
[353055119,1739530247643,-500.0,0.0001378,2]
[353055121,1739530247653,-500.0,0.0001378,2]
[353055123,1739530247663,-500.0,0.0001378,2]
[353055125,1739530247672,-500.0,0.0001378,2]
[353055127,1739530247685,-500.0,0.0001378,2]
[353055129,1739530247695,-210.1012625,0.0001378,2]
[353055131,1739530247704,-500.0,0.0001378,2]
[353055133,1739530247713,-500.0,0.0001378,2]
[353055135,1739530247722,-507.14758953,0.0001378,2]
[353055137,1739530247732,-521.33096899,0.0001378,2]
[353055139,1739530247741,-500.0,0.0001378,2]
[353055141,1739530247750,-500.0,0.0001378,2]
[353055143,1739530247759,-500.0,0.0001378,2]
[353055145,1739530247768,-500.0,0.0001378,2]
[353055147,1739530247777,-503.99665116,0.0001378,2]
[353055149,1739530247787,-500.0,0.0001378,2]
[353055151,1739530247799,-500.0,0.0001378,2]
[353055153,1739530247809,-500.0,0.0001378,2]
[353055155,1739530247820,-500.0,0.0001378,2]
[353055157,1739530247830,-500.0,0.0001378,2]
[353055159,1739530247840,-500.0,0.0001378,2]
[353055161,1739530247850,-500.0,0.0001378,2]
[353055163,1739530247859,-500.0,0.0001378,2]
[353055165,1739530247869,-502.93464732,0.0001378,2]
[353055167,1739530247879,-500.0,0.0001378,2]
[353055169,1739530247889,-500.0,0.0001378,2]
[353055170,1739530247899,-500.0,0.0001378,2]
[353055172,1739530247908,-500.0,0.0001378,2]
[353055174,1739530247919,-268.66871402,0.0001378,2]
[353055176,1739530247929,-500.0,0.0001378,2]
[353055178,1739530247943,-500.0,0.0001378,2]
[353055180,1739530247954,-500.0,0.0001378,2]
[353055183,1739530247968,-500.0,0.0001378,2]
[353055184,1739530247979,-500.0,0.0001378,2]
[353055186,1739530247992,-500.0,0.0001378,2]
[353055189,1739530248004,-500.15284971,0.0001378,2]
[353055191,1739530248016,-500.0,0.0001378,2]
[353055193,1739530248027,-500.0,0.0001378,2]
[353055195,1739530248039,-500.0,0.0001378,2]
[353055197,1739530248050,-500.0,0.0001378,2]
[353055199,1739530248061,-503.01376355,0.0001378,2]
[353055200,1739530248071,-500.0,0.0001378,2]
[353055202,1739530248083,-500.0,0.0001378,2]
[353055204,1739530248093,-500.0,0.0001378,2]
[353055207,1739530248104,-500.0,0.0001378,2]
[353055209,1739530248115,-500.0,0.0001378,2]
[353055211,1739530248127,-500.0,0.0001378,2]
[353055213,1739530248140,-500.0,0.0001378,2]
[353055215,1739530248151,-500.0,0.0001378,2]
[353055217,1739530248162,-500.0,0.0001378,2]
[353055219,1739530248172,-500.0,0.0001378,2]
[353055221,1739530248188,-500.0,0.0001378,2]
[353055223,1739530248199,-571.8208771,0.0001378,2]
[353055225,1739530248211,-500.0,0.0001378,2]
[353055227,1739530248222,-500.0,0.0001378,2]
[353055229,1739530248232,-579.36126551,0.0001378,2]
[353055231,1739530248243,-322.41778786,0.0001378,2]
[353055232,1739530248254,-500.0,0.0001378,2]
[353055235,1739530248265,-500.0,0.0001378,2]
[353055237,1739530248275,-500.0,0.0001378,2]
[353055239,1739530248287,-512.5359189,0.0001378,2]
[353055241,1739530248298,-500.0,0.0001378,2]
[353055243,1739530248308,-500.0,0.0001378,2]
[353055244,1739530248317,-501.44502321,0.0001378,2]
[353055246,1739530248328,-500.0,0.0001378,2]
[353055248,1739530248338,-500.60521246,0.0001378,2]
[353055250,1739530248349,-500.98260715,0.0001378,2]
[353055252,1739530248359,-500.0,0.0001378,2]
[353055254,1739530248370,-500.0,0.0001378,2]
[353055256,1739530248381,-500.0,0.0001378,2]
[353055258,1739530248391,-500.0,0.0001378,2]
[353055260,1739530248402,-331.04451156,0.0001378,2]
[353055262,1739530248412,-500.0,0.0001378,2]
[353055264,1739530248426,-500.0,0.0001378,2]
[353055266,1739530248437,-500.0,0.0001378,2]
[353055268,1739530248448,-500.0,0.0001378,2]
[353055270,1739530248459,-512.49140883,0.0001378,2]
[353055272,1739530248473,-500.0,0.0001378,2]
[353055274,1739530248482,-501.38030696,0.0001378,2]
[353055276,1739530248492,-505.27004101,0.0001378,2]
[353055278,1739530248502,-500.0,0.0001378,2]
[353055280,1739530248512,-510.68342233,0.0001378,2]
[353055283,1739530248524,-500.0,0.0001378,2]
[353055285,1739530248534,-500.0,0.0001378,2]
[353055287,1739530248543,-500.0,0.0001378,2]
[353055289,1739530248552,-500.0,0.0001378,2]
[353055291,1739530248561,-500.0,0.0001378,2]
[353055293,1739530248572,-500.0,0.0001378,2]
[353055295,1739530248582,-501.21363606,0.0001378,2]
[353055297,1739530248593,-500.0,0.0001378,2]
[353055299,1739530248603,-500.0,0.0001378,2]
[353055301,1739530248614,-500.0,0.0001378,2]
[353055302,1739530248623,-557.63600037,0.0001378,2]
[353055304,1739530248634,-500.0,0.0001378,2]
[353055306,1739530248644,-599.252898,0.0001378,2]
[353055308,1739530248654,-500.0,0.0001378,2]
[353055310,1739530248664,-504.00536011,0.0001378,2]
[353055313,1739530248675,-500.0,0.0001378,2]
[353055315,1739530248685,-500.0,0.0001378,2]
[353055316,1739530248694,-500.0,0.0001378,2]
[353055318,1739530248702,-500.0,0.0001378,2]
[353055320,1739530248714,-500.0,0.0001378,2]
[353055322,1739530248730,-500.00188731,0.0001378,2]
[353055324,1739530248742,-507.82825032,0.0001378,2]
[353055326,1739530248753,-500.0,0.0001378,2]
[353055328,1739530248760,-584.4459652,0.0001378,2]
[353055330,1739530248769,-494.0,0.0001378,2]
[353055332,1739530248779,-500.0,0.0001378,2]
[353055334,1739530248788,-500.0,0.0001378,2]
[353055336,1739530248799,-500.0,0.0001378,2]
[353055337,1739530248808,-504.08861852,0.0001378,2]
[353055339,1739530248817,-500.0,0.0001378,2]
[353055341,1739530248826,-500.0,0.0001378,2]
[353055343,1739530248835,-500.0,0.0001378,2]
[353055345,1739530248843,-500.0,0.0001378,2]
[353055347,1739530248854,-500.0,0.0001378,2]
[353055349,1739530248865,-500.0,0.0001378,2]
[353055351,1739530248877,-501.84404982,0.0001378,2]
[353055353,1739530248887,-500.0,0.0001378,2]
[353055355,1739530248898,-500.0,0.0001378,2]
[353055357,1739530248909,-420.5,0.0001378,2]
[353055359,1739530248917,-500.0,0.0001378,2]
[353055361,1739530248926,-500.0,0.0001378,2]
[353055363,1739530248938,-506.86270644,0.0001378,2]
[353055365,1739530248949,-500.0,0.0001378,2]
[353055367,1739530248959,-510.76558993,0.0001378,2]
[353055369,1739530248970,-500.0,0.0001378,2]
[353055371,1739530248980,-500.0,0.0001378,2]
[353055373,1739530248990,-500.0,0.0001378,2]
[353055375,1739530249000,-500.0,0.0001378,2]
[353055377,1739530249012,-500.0,0.0001378,2]
[353055379,1739530249022,-500.0,0.0001378,2]
[353055381,1739530249032,-505.20806348,0.0001378,2]
[353055383,1739530249042,-500.0,0.0001378,2]
[353055385,1739530249052,-502.5065292,0.0001378,2]
[353055387,1739530249062,-500.0,0.0001378,2]
[353055389,1739530249072,-500.0,0.0001378,2]
[353055391,1739530249083,-500.0,0.0001378,2]
[353055393,1739530249095,-494.69043714,0.0001378,2]
[353055395,1739530249106,-500.0,0.0001378,2]
[353055397,1739530249117,-500.0,0.0001378,2]
[353055399,1739530249126,-500.0,0.0001378,2]
[353055401,1739530249137,-500.0,0.0001378,2]
[353055403,1739530249149,-500.0,0.0001378,2]
[353055405,1739530249161,-500.0,0.0001378,2]
[353055407,1739530249172,-519.45338901,0.0001378,2]
[353055409,1739530249183,-500.0,0.0001378,2]
[353055411,1739530249198,-500.0,0.0001378,2]
[353055413,1739530249210,-503.23496982,0.0001378,2]
[353055415,1739530249223,-500.0,0.0001378,2]
[353055416,1739530249235,-897.17,0.0001378,2]
[353055417,1739530249247,-500.0,0.0001378,2]
[353055418,1739530249259,-500.0,0.0001378,2]
[353055419,1739530249270,-507.19610767,0.0001378,2]
[353055420,1739530249282,-500.0,0.0001378,2]
[353055421,1739530249294,-500.0,0.0001378,2]
[353055422,1739530249306,-567.49156712,0.0001378,2]
[353055424,1739530249318,-500.0,0.0001378,2]
[353055426,1739530249329,-4571.01,0.0001378,2]
[353055428,1739530249340,-500.0,0.0001378,2]
[353055430,1739530249351,-507.57522842,0.0001378,2]
[353055432,1739530249363,-504.19,0.0001378,2]
[353055434,1739530249375,-500.0,0.0001378,2]
[353055436,1739530249386,-500.0,0.0001378,2]
[353055438,1739530249397,-500.0,0.0001378,2]
[353055441,1739530249409,-500.0,0.0001378,2]
[353055443,1739530249419,-500.0,0.0001378,2]
[353055457,1739530249546,-500.0,0.0001378,2]
[353055459,1739530249556,-538.20731881,0.0001378,2]
[353055461,1739530249566,-500.0,0.0001378,2]
[353055463,1739530249576,-500.0,0.0001378,2]
[353055465,1739530249586,-527.89,0.0001378,2]
[353055467,1739530249596,-500.0,0.0001378,2]
[353055469,1739530249605,-500.0,0.0001378,2]
[353055470,1739530249616,-500.0,0.0001378,2]
[353055472,1739530249626,-620.77292483,0.0001378,2]
[353055474,1739530249635,-500.0,0.0001378,2]
[353055476,1739530249645,-500.0,0.0001378,2]
[353055478,1739530249654,-506.68,0.0001378,2]
[353055480,1739530249664,-500.0,0.0001378,2]
[353055482,1739530249674,-168.75358466,0.0001378,2]
[353055484,1739530249683,-500.0,0.0001378,2]
[353055486,1739530249694,-500.0,0.0001378,2]
[353055488,1739530249704,-500.0,0.0001378,2]
[353055490,1739530249714,-1135.02,0.0001378,2]
[353055492,1739530249724,-1263.54,0.0001378,2]
[353055494,1739530249733,-507.28567975,0.0001378,2]
[353055496,1739530249743,-500.0,0.0001378,2]
[353055498,1739530249753,-1040.49,0.0001378,2]
[353055500,1739530249762,-500.0,0.0001378,2]
[353055502,1739530249771,-500.0,0.0001378,2]
[353055504,1739530249780,-503.96730397,0.0001378,2]
[353055506,1739530249790,-500.0,0.0001378,2]
[353055508,1739530249799,-500.0,0.0001378,2]
[353055510,1739530249809,-500.0,0.0001378,2]
[353055512,1739530249819,-500.0,0.0001378,2]
[353055514,1739530249828,-500.0,0.0001378,2]
[353055516,1739530249838,-500.0,0.0001378,2]
[353055518,1739530249847,-502.61935014,0.0001378,2]
[353055520,1739530249857,-500.0,0.0001378,2]
[353055523,1739530249867,-500.0,0.0001378,2]